fUSD/lending_fUSD_20250708
["ID","MTS","AMOUNT","RATE_DAILY","PERIOD"]
[370357908,1751977878774,-263.9886716,0.00024762,2]
[370357909,1751977878783,-273.8913284,0.00024931,2]
[370357910,1751977878795,-186.1086716,0.00024931,2]
[370357911,1751977878804,-64.37173809,0.00024931,2]
[370357912,1751977878815,-395.62826191,0.00024931,2]
[370357913,1751977878825,-460.0,0.00024931,2]
[370357914,1751977878835,-215.4,0.00024935,2]
[370357915,1751977878845,-551.93,0.00025036,2]
[370357916,1751977878855,-460.0,0.00025205,2]
[370357917,1751977878865,-460.0,0.00025205,2]
[370357918,1751977878874,-460.0,0.00025205,2]
[370357919,1751977878883,-868.24132089,0.00025307,2]
[370357920,1751977878895,-1233.68917964,0.00025307,2]
[370357921,1751977878906,-930.26439049,0.00025307,2]
[370357922,1751977878915,-733.56,0.00025307,2]
[370357923,1751977878925,-672.32,0.00025307,2]
[370357924,1751977878935,-676.33,0.00025307,2]
[370357925,1751977878944,-460.0,0.00025308,2]
[370357926,1751977878954,-460.0,0.00025308,2]
[370357927,1751977878963,-460.0,0.00025308,2]
[370357928,1751977878973,-412.0,0.00025308,2]
[370357929,1751977878983,-460.0,0.00025308,2]
[370357930,1751977878992,-485.25,0.00025308,2]
[370357931,1751977879002,-460.0,0.00025308,2]
[370357932,1751977879011,-106.95233412,0.00025308,2]
[370357933,1751977879651,-379.38838783,0.00024657,2]
[370357934,1751977879686,-80.61161217,0.00024657,2]
[370357935,1751977879698,-460.0,0.00024657,2]
[370357936,1751977879707,-460.0,0.00024657,2]
[370357937,1751977879717,-460.0,0.0002466,2]
[370357938,1751977879726,-460.0,0.00024661,2]
[370357939,1751977879737,-460.0,0.0002476,2]
[370357940,1751977879747,-460.0,0.0002476,2]
[370357941,1751977879756,-561.1633988,0.0002476,2]
[370357942,1751977879765,-460.0,0.00024762,2]
[370357943,1751977879775,-460.0,0.00024762,2]
[370357944,1751977879785,-460.0,0.00024931,2]
[370357945,1751977879794,-243.74,0.00024931,2]
[370357946,1751977879804,-460.0,0.00024934,2]
[370357947,1751977879814,-517.79,0.00024935,2]
[370357948,1751977879823,-460.0,0.00025034,2]
[370357949,1751977879833,-460.0,0.00025208,2]
[370357950,1751977879842,-153.28449218,0.00025308,2]
[370357951,1751977879851,-460.0,0.00025308,2]
[370357952,1751977879861,-1407.34,0.00025308,2]
[370357953,1751977879870,-850.62,0.00025308,2]
[370357954,1751977879879,-257.32767485,0.00025308,2]
[370357955,1751977879889,-460.0,0.00025308,2]
[370357956,1751977879898,-460.0,0.00025308,2]
[370357957,1751977879908,-460.0,0.00025308,2]
[370357958,1751977879918,-460.0,0.00025308,2]
[370357959,1751977879928,-460.0,0.00025308,2]
[370357960,1751977879937,-460.0,0.00025308,2]
[370357961,1751977879947,-460.0,0.00025308,2]
[370357962,1751977879957,-460.0,0.00025308,2]
[370357963,1751977879966,-460.0,0.00025308,2]
[370357964,1751977879976,-752.1,0.00025308,2]
[370357965,1751977879986,-460.0,0.00025308,2]
[370357966,1751977879995,-460.0,0.00025308,2]
[370357967,1751977880005,-460.0,0.00025308,2]
[370357968,1751977880014,-460.0,0.00025308,2]
[370357969,1751977880023,-460.0,0.00025308,2]
[370357970,1751977880035,-157.76696196,0.00025308,2]
[370357971,1751977880046,-1241.46,0.00025308,2]
[370357972,1751977880055,-460.0,0.00025308,2]
[370357973,1751977880065,-460.0,0.00025308,2]
[370357974,1751977880075,-690.9,0.00025308,2]
[370357975,1751977880085,-460.0,0.00025308,2]
[370357976,1751977880095,-460.0,0.00025308,2]
[370357977,1751977880106,-1106.93,0.00025308,2]
[370357978,1751977880118,-1186.61,0.00025308,2]
[370357979,1751977880128,-460.0,0.00025308,2]
[370357980,1751977880137,-821.29,0.00025308,2]
[370357981,1751977880147,-240.0,0.00025308,2]
[370357982,1751977880157,-550.15,0.00025308,2]
[370357983,1751977880166,-599.57949977,0.00025308,2]
[370357984,1751977880176,-460.0,0.00025308,2]
[370357985,1751977880185,-582.11,0.00025308,2]
[370357986,1751977880195,-460.0,0.00025308,2]
[370357987,1751977880205,-460.0,0.00025308,2]
[370357988,1751977880216,-702.4,0.00025308,2]
[370357989,1751977880225,-909.96,0.00025308,2]
[370357990,1751977880235,-1339.31,0.00025308,2]
[370357991,1751977880244,-254.80790426,0.00025308,2]
[370357992,1751977880253,-514.09149274,0.00025308,2]
[370357993,1751977880263,-460.0,0.00025308,2]
[370357994,1751977880273,-1411.07,0.00025308,2]
[370357995,1751977880282,-702.09,0.00025308,2]
[370357996,1751977880292,-533.71,0.00025308,2]
[370357997,1751977880302,-559.01,0.00025308,2]
[370357998,1751977880311,-976.26,0.00025308,2]
[370357999,1751977880321,-528.98,0.00025308,2]
[370358000,1751977880331,-1556.7,0.00025308,2]
[370358001,1751977880341,-590.25,0.00025308,2]
[370358002,1751977880350,-1246.43,0.00025308,2]
[370358003,1751977880360,-460.0,0.00025308,2]
[370358004,1751977880370,-460.0,0.00025308,2]
[370358005,1751977880379,-493.62,0.00025308,2]
[370358006,1751977880389,-460.0,0.00025308,2]
[370358007,1751977880399,-460.0,0.00025308,2]
[370358008,1751977880409,-460.0,0.00025308,2]
[370358009,1751977880419,-460.0,0.00025308,2]
[370358010,1751977880429,-460.0,0.00025308,2]
[370358011,1751977880439,-460.0,0.00025308,2]
[370358012,1751977880449,-631.82,0.00025308,2]
[370358013,1751977880459,-353.08216199,0.00025308,2]
[370358014,1751977880469,-460.0,0.00025308,2]
[370358015,1751977880479,-540.36,0.00025308,2]
[370358016,1751977880489,-162.44896938,0.00025308,2]
[370358017,1751977880498,-460.0,0.00025308,2]
[370358018,1751977880508,-543.01,0.00025308,2]
[370358019,1751977880518,-460.0,0.00025308,2]
[370358020,1751977880527,-460.0,0.00025308,2]
[370358021,1751977880537,-1528.14,0.00025308,2]
[370358022,1751977880547,-460.0,0.00025308,2]
[370358023,1751977880557,-499.66,0.00025308,2]
[370358024,1751977880566,-460.0,0.00025308,2]
[370358025,1751977880576,-460.0,0.00025308,2]
[370358026,1751977880586,-460.0,0.00025308,2]
[370358027,1751977880596,-375.39991593,0.00025308,2]
[370358028,1751977880606,-546.28,0.00025308,2]
[370358029,1751977880616,-460.0,0.00025308,2]
[370358030,1751977880626,-460.0,0.00025308,2]
[370358031,1751977880636,-460.0,0.00025308,2]
[370358032,1751977880646,-921.71,0.00025308,2]
[370358033,1751977880655,-1186.85,0.00025308,2]
[370358034,1751977880665,-460.0,0.00025308,2]
[370358035,1751977880675,-490.0,0.00025308,2]
[370358036,1751977880685,-460.0,0.00025308,2]
[370358037,1751977880695,-460.0,0.00025308,2]
[370358038,1751977880705,-649.31,0.00025308,2]
[370358039,1751977880715,-460.0,0.00025308,2]
[370358040,1751977880724,-460.0,0.00025308,2]
[370358041,1751977880734,-562.74,0.00025308,2]
[370358042,1751977880744,-460.0,0.00025308,2]
[370358043,1751977880754,-460.0,0.00025308,2]
[370358044,1751977880764,-614.33,0.00025308,2]
[370358045,1751977880774,-460.0,0.00025308,2]
[370358046,1751977880783,-158.45987597,0.00025308,2]
[370358047,1751977880794,-460.0,0.00025308,2]
[370358048,1751977880803,-1330.82,0.00025308,2]
[370358049,1751977880813,-460.0,0.00025308,2]
[370358050,1751977880822,-604.84,0.00025308,2]
[370358051,1751977880832,-460.0,0.00025308,2]
[370358052,1751977880842,-163.26112806,0.00025308,2]
[370358053,1751977880852,-460.0,0.00025308,2]
[370358054,1751977880861,-460.0,0.00025308,2]
[370358055,1751977880870,-2180.69,0.00025308,2]
[370358056,1751977880880,-460.0,0.00025308,2]
[370358057,1751977880890,-460.0,0.00025308,2]
[370358058,1751977880899,-467.89,0.00025308,2]
[370358059,1751977880910,-600.91,0.00025308,2]
[370358060,1751977880920,-878.08,0.00025308,2]
[370358061,1751977880930,-1122.6,0.00025308,2]
[370358062,1751977880940,-460.0,0.00025308,2]
[370358063,1751977880949,-460.0,0.00025308,2]
[370358064,1751977880959,-890.03,0.00025308,2]
[370358065,1751977880969,-2065.51,0.00025308,2]
[370358066,1751977880978,-1278.82,0.00025308,2]
[370358067,1751977880988,-1241.05,0.00025308,2]
[370358068,1751977880998,-460.0,0.00025308,2]
[370358069,1751977881007,-460.0,0.00025308,2]
[370358070,1751977881016,-939.16,0.00025308,2]
[370358071,1751977881026,-460.0,0.00025308,2]
[370358072,1751977881037,-991.19,0.00025308,2]
[370358073,1751977881047,-460.0,0.00025308,2]
[370358074,1751977881057,-460.0,0.00025308,2]
[370358075,1751977881066,-460.0,0.00025308,2]
[370358076,1751977881075,-3006.01,0.00025308,2]
[370358077,1751977881085,-575.46,0.00025308,2]
[370358078,1751977881094,-460.0,0.00025308,2]
[370358079,1751977881104,-569.69,0.00025308,2]
[370358080,1751977881114,-459.81387691,0.00025308,2]
[370358081,1751977881123,-1583.79,0.00025308,2]
[370358082,1751977881132,-473.72,0.00025308,2]
[370358083,1751977881142,-609.53,0.00025308,2]
[370358084,1751977881151,-460.0,0.00025308,2]
[370358085,1751977881160,-503.72,0.00025308,2]
[370358086,1751977881170,-1752.07,0.00025308,2]
[370358087,1751977881179,-460.0,0.00025308,2]
[370358088,1751977881189,-460.0,0.00025308,2]
[370358089,1751977881198,-460.0,0.00025308,2]
[370358090,1751977881208,-2807.97,0.00025308,2]
[370358091,1751977881217,-218.03560249,0.00025308,2]
[370358092,1751977881226,-460.0,0.00025308,2]
[370358093,1751977881236,-650.89,0.00025308,2]
[370358094,1751977881245,-786.48,0.00025308,2]
[370358095,1751977881254,-549.5,0.00025308,2]
[370358096,1751977881264,-461.42508028,0.00025308,2]
[370358097,1751977881273,-460.0,0.00025308,2]
[370358098,1751977881282,-879.5,0.00025308,2]
[370358099,1751977881292,-6473.36,0.00025308,2]
[370358100,1751977881301,-947.74,0.00025308,2]
[370358101,1751977881311,-251.91315399,0.00025308,2]
[370358102,1751977881320,-460.0,0.00025308,2]
[370358103,1751977881329,-588.43321463,0.00025308,2]
[370358104,1751977881339,-460.0,0.00025308,2]
[370358105,1751977881349,-460.0,0.00025308,2]
[370358106,1751977881358,-2813.94,0.00025308,2]
[370358107,1751977881368,-791.94,0.00025308,2]
[370358108,1751977881377,-740.43,0.00025308,2]
[370358109,1751977881387,-614.23,0.00025308,2]
[370358110,1751977881397,-460.0,0.00025308,2]
[370358111,1751977881407,-460.0,0.00025308,2]
[370358112,1751977881417,-581.85,0.00025308,2]
[370358113,1751977881426,-460.0,0.00025308,2]
[370358114,1751977881436,-1172.56,0.00025308,2]
[370358115,1751977881446,-460.0,0.00025308,2]
[370358116,1751977881456,-1678.71,0.00025308,2]
[370358117,1751977881466,-1152.37,0.00025308,2]
[370358118,1751977881475,-751.95,0.00025308,2]
[370358119,1751977881486,-460.0,0.00025308,2]
[370358120,1751977881495,-460.0,0.00025308,2]
[370358121,1751977881505,-597.75,0.00025308,2]
[370358122,1751977881516,-460.0,0.00025308,2]
[370358123,1751977881527,-460.0,0.00025308,2]
[370358124,1751977881537,-2194.8,0.00025308,2]
[370358125,1751977881548,-460.0,0.00025308,2]
[370358126,1751977881558,-1738.62,0.00025308,2]
[370358127,1751977881568,-333.61,0.00025308,2]
[370358128,1751977881578,-523.19256448,0.00025308,2]
[370358129,1751977881588,-188.19266172,0.00025309,2]
[370358130,1751977881598,-460.0,0.00025309,2]
[370358131,1751977881608,-589.97,0.00025309,2]
[370358132,1751977881617,-460.0,0.00025309,2]
[370358133,1751977881627,-460.0,0.00025309,2]
[370358134,1751977881637,-460.0,0.00025309,2]
[370358135,1751977881646,-460.0,0.00025309,2]
[370358136,1751977881656,-460.0,0.00025309,2]
[370358137,1751977881665,-460.0,0.00025309,2]
[370358138,1751977881675,-460.0,0.00025309,2]
[370358139,1751977881684,-460.0,0.00025309,2]
[370358140,1751977881694,-436.97474603,0.00025309,2]
[370358141,1751977881703,-460.0,0.00025309,2]
[370358142,1751977881712,-460.0,0.00025309,2]
[370358143,1751977881722,-460.0,0.00025309,2]
[370358144,1751977881732,-460.0,0.00025309,2]
[370358145,1751977881743,-460.0,0.00025309,2]
[370358146,1751977881752,-460.0,0.00025309,2]
[370358147,1751977881762,-460.0,0.00025309,2]
[370358148,1751977881773,-460.0,0.00025309,2]
[370358149,1751977881783,-460.0,0.00025309,2]
[370358150,1751977881792,-482.50371243,0.00025309,2]
[370358151,1751977881802,-460.0,0.00025309,2]
[370358152,1751977881812,-460.0,0.00025309,2]
[370358153,1751977881822,-460.0,0.00025309,2]
[370358154,1751977881832,-460.0,0.00025309,2]
[370358155,1751977881842,-460.0,0.00025309,2]
[370358156,1751977881852,-460.0,0.00025309,2]
[370358157,1751977881862,-460.0,0.00025309,2]
[370358158,1751977881872,-460.0,0.00025309,2]
[370358159,1751977881882,-819.73,0.00025309,2]
[370358160,1751977881891,-2108.94,0.00025309,2]
[370358161,1751977881901,-3091.69,0.00025309,2]
[370358162,1751977881911,-3109.21,0.00025309,2]
[370358163,1751977881920,-3414.54,0.00025309,2]
[370358164,1751977881930,-1518.35,0.00025309,2]
[370358165,1751977881940,-1572.47,0.00025309,2]
[370358166,1751977881950,-1523.55,0.00025309,2]
[370358167,1751977881959,-625.02902375,0.00025309,2]
[370358168,1751977881979,-767.39097625,0.00025309,2]
[370358169,1751977881989,-548.36,0.00025309,2]
[370358170,1751977881998,-151.0,0.0002531,7]
[370358171,1751977882008,-209.754586,0.0002531,7]
[370358172,1751977882018,-173.407844,0.0002531,7]
[370358173,1751977882029,-18.94183146,0.0002531,7]
[370358174,1751977884407,229.3231578,0.00029041,120]
[370358180,1751978051555,152.86,0.00026598,120]
[370358181,1751978051757,152.86,0.00029554,120]
[370358182,1751978064246,400.713,0.0003013,120]
[370358184,1751978111607,188.11,0.00013699,2]
[370358197,1751978362374,500.0,0.00030137,120]
[370358377,1751978568933,1000.0,0.00030136,120]
[370358382,1751978696613,1082.0,0.00017024,2]
[370358383,1751978701754,235.96624561,0.00016173,2]
[370358391,1751979032106,-570.27217021,0.0001792,2]
[370358392,1751979032118,-511.72782979,0.0001792,2]
[370358393,1751979032127,-1082.0,0.00018863,2]
[370358394,1751979032137,-1082.0,0.00019856,2]
[370358395,1751979032147,-188.11,0.00020187,2]
[370358396,1751979032157,-1082.0,0.00020901,2]
[370358397,1751979032167,-1000.0,0.00021595,2]
[370358398,1751979032176,-938.0,0.00021625,2]
[370358399,1751979032186,-15686.37427572,0.00021626,2]
[370358400,1751979032197,-6692.91321563,0.00021626,2]
[370358401,1751979032220,-1130.73717751,0.00021626,2]
[370358402,1751979032247,-389.97533114,0.00021626,2]
[370358403,1751979032257,-3203.36841474,0.00021635,2]
[370358404,1751979032283,-585.88327243,0.00021635,2]
[370358405,1751979032341,-9206.02831283,0.00021635,2]
[370358406,1751979032351,-261.18,0.00021647,2]
[370358407,1751979032361,-156.09246775,0.000219,2]
[370358408,1751979032372,-150.0,0.00022,2]
[370358409,1751979032383,-1082.0,0.00022001,2]
[370358410,1751979032393,-869.07,0.00022313,2]
[370358411,1751979032404,-869.07,0.00022325,2]
[370358412,1751979032414,-869.07,0.00022336,2]
[370358413,1751979032424,-869.07,0.00022348,2]
[370358414,1751979032433,-869.07,0.0002236,2]
[370358415,1751979032444,-869.07,0.00022372,2]
[370358416,1751979032454,-666.0,0.00022375,2]
[370358417,1751979032463,-869.07,0.00022383,2]
[370358418,1751979032472,-869.07,0.00022395,2]
[370358419,1751979032484,-590.19284475,0.00022406,2]
[370358420,1751979032493,-869.07,0.00022407,2]
[370358421,1751979032503,-869.07,0.00022419,2]
[370358423,1751979032513,-869.07,0.0002243,2]
[370358425,1751979032523,-519.0,0.00022436,2]
[370358426,1751979032532,-869.07,0.00022442,2]
[370358427,1751979032541,-869.07,0.00022454,2]
[370358428,1751979032551,-261.18,0.00022459,2]
[370358429,1751979032560,-869.07,0.00022466,2]
[370358430,1751979032569,-150.0,0.0002247,2]
[370358432,1751979032578,-869.07,0.00022477,2]
[370358434,1751979032588,-869.07,0.00022489,2]
[370358436,1751979032597,-200.0,0.00022496,2]
[370358438,1751979032607,-869.07,0.00022501,2]
[370358439,1751979032617,-869.07,0.00022513,2]
[370358440,1751979032627,-869.07,0.00022524,2]
[370358441,1751979032636,-869.07,0.00022536,2]
[370358442,1751979032645,-14481.26331156,0.00022696,2]
[370358445,1751979032758,-840.64668844,0.00022696,2]
[370358446,1751979032768,-661.74361666,0.000229,8]
[370358461,1751979038862,-2032.56656602,0.000229,8]
[370358462,1751979038871,-3814.95,0.00022931,2]
[370358463,1751979038881,-150.0,0.0002294,2]
[370358464,1751979038890,-156.44,0.00022961,2]
[370358465,1751979038899,-150.0,0.00022993,2]
[370358466,1751979038909,-150.0,0.00023005,2]
[370358467,1751979038918,-2067.26,0.00023065,2]
[370358468,1751979038927,-200.0,0.00023086,7]
[370358469,1751979038936,-3732.62710558,0.00023147,2]
[370358470,1751979038948,-3418.56700737,0.00023147,2]
[370358471,1751979038958,-398.17636556,0.00023147,2]
[370358472,1751979038968,-1082.0,0.00023159,2]
[370358473,1751979038979,-3456.71837807,0.00023247,7]
[370358474,1751979038992,-36008.590824,0.00023247,7]
[370358475,1751979039012,-404.0519922,0.00023247,7]
[370358476,1751979040435,-9821.89893717,0.00023247,7]
[370358477,1751979040448,-292.9145701,0.00023247,7]
[370358478,1751979040459,-1089.798,0.00023247,7]
[370358479,1751979040605,-127313.96729846,0.00023247,7]
[370358480,1751979040614,-837.09214054,0.00023247,7]
[370358481,1751979040624,-210.34477682,0.00023247,7]
[370358482,1751979040634,-398.17636554,0.0002325,2]
[370358483,1751979040643,-261.18,0.0002327,2]
[370358484,1751979040652,-500.0,0.000233,2]
[370358486,1751979040662,-500.0,0.000233,2]
[370358487,1751979040671,-500.0,0.000233,2]
[370358489,1751979040680,-500.0,0.000233,2]
[370358491,1751979040690,-5000.0,0.00023346,2]
[370358493,1751979040699,-398.17636554,0.00023353,2]
[370358494,1751979040708,-7151.19411292,0.00023395,2]
[370358495,1751979040718,-150.0,0.0002341,2]
[370358496,1751979040727,-2694.31018257,0.00023417,9]
[370358497,1751979040736,-398.17636554,0.00023456,2]
[370358498,1751979040745,-530.75306577,0.00023481,2]
[370358499,1751979040755,-3922.64,0.00023512,2]
[370358500,1751979040764,-352.72,0.00023556,2]
[370358501,1751979040775,-398.17636554,0.00023559,2]
[370358502,1751979040784,-151.0,0.00023583,2]
[370358503,1751979040793,-151.0,0.00023583,2]
[370358504,1751979040802,-151.0,0.00023583,2]
[370358505,1751979040812,-151.0,0.00023583,2]
[370358506,1751979040822,-151.0,0.00023583,2]
[370358507,1751979040831,-151.0,0.00023583,2]
[370358508,1751979040840,-151.0,0.00023583,2]
[370358509,1751979040850,-252.21439804,0.00023583,2]
[370358510,1751979040859,-200.0,0.00023588,2]
[370358512,1751979040869,-15469.06,0.00023597,2]
[370358514,1751979040878,-152.86,0.00023643,2]
[370358516,1751979040887,-7151.19411292,0.00023644,2]
[370358517,1751979040896,-398.17636554,0.00023662,2]
[370358518,1751979040906,-250.0,0.00023671,2]
[370358519,1751979040915,-155.52,0.00023754,2]
[370358520,1751979040924,-398.17636554,0.00023765,2]
[370358521,1751979040934,-3141.45,0.00023779,2]
[370358522,1751979040943,-186.73,0.00023836,2]
[370358523,1751979040952,-504.43141811,0.00023848,2]
[370358524,1751979040961,-1000.0,0.00023848,2]
[370358525,1751979040970,-1000.0,0.00023848,2]
[370358526,1751979040980,-167.24,0.00023868,2]
[370358527,1751979040989,-398.17636554,0.00023868,2]
[370358528,1751979040998,-2167.61,0.00023868,2]
[370358529,1751979041007,-150.0,0.0002388,2]
[370358530,1751979041016,-7151.19411292,0.00023892,2]
[370358531,1751979041025,-2694.31018257,0.00023934,10]
[370358532,1751979041034,-398.17636554,0.00023971,2]
[370358533,1751979041043,-398.17636554,0.00024074,2]
[370358534,1751979041052,-261.18,0.00024082,2]
[370358535,1751979041062,-300.0,0.00024122,2]
[370358536,1751979041071,-576.95783515,0.00024122,2]
[370358537,1751979041080,-151.0,0.00024122,2]
[370358538,1751979041089,-207.4,0.00024122,2]
[370358539,1751979041098,-7151.19411292,0.00024141,2]
[370358540,1751979041107,-398.17636554,0.00024178,2]
[370358541,1751979041116,-398.17636554,0.00024281,2]
[370358542,1751979041125,-1000.0,0.00024294,2]
[370358543,1751979041134,-1082.0,0.00024317,2]
[370358544,1751979041143,-460.0,0.00024324,2]
[370358545,1751979041152,-150.0,0.0002435,2]
[370358546,1751979041161,-398.17636554,0.00024384,2]
[370358547,1751979041170,-7151.19411292,0.00024389,2]
[370358548,1751979041179,-1500.0,0.00024396,2]
[370358549,1751979041188,-633.12593895,0.00024396,2]
[370358550,1751979041198,-188.85,0.00024416,2]
[370358551,1751979041208,-300.0,0.00024446,2]
[370358552,1751979041217,-2694.31018257,0.00024452,11]
[370358553,1751979041226,-398.17636554,0.00024487,2]
[370358554,1751979041235,-1086.0,0.00024544,2]
[370358555,1751979041244,-500.0,0.00024555,2]
[370358556,1751979041253,-276.81186228,0.00024555,2]
[370358557,1751979041262,-500.0,0.00024555,2]
[370358558,1751979041271,-184.37906037,0.00024555,2]
[370358559,1751979041281,-499.97383338,0.00024555,2]
[370358560,1751979041290,-500.0,0.00024555,2]
[370358561,1751979041299,-500.0,0.00024555,2]
[370358562,1751979041309,-500.0,0.00024555,2]
[370358563,1751979041318,-357.13394158,0.00024555,2]
[370358564,1751979041327,-8413.85169476,0.00024556,2]
[370358565,1751979041336,-319.00592146,0.00024557,2]
[370358566,1751979041345,-213.18441222,0.00024557,2]
[370358567,1751979041355,-6841.26965009,0.000246,2]
[370358568,1751979041364,-213.18441222,0.0002461,2]
[370358569,1751979041654,-7151.19411292,0.00024638,2]
[370358570,1751979041665,-8413.85169469,0.00024648,2]
[370358571,1751979041674,-4122.34,0.00024656,2]
[370358572,1751979041684,-460.0,0.00024657,2]
[370358573,1751979041693,-460.0,0.00024657,2]
[370358574,1751979041703,-460.0,0.00024657,2]
[370358575,1751979041712,-566.46,0.00024657,2]
[370358576,1751979041722,-460.0,0.00024657,2]
[370358577,1751979041732,-460.0,0.00024657,2]
[370358578,1751979041741,-460.0,0.00024657,2]
[370358579,1751979041751,-460.0,0.00024657,2]
[370358580,1751979041760,-668.66,0.00024657,2]
[370358581,1751979041769,-460.0,0.00024657,2]
[370358582,1751979041779,-460.0,0.00024657,2]
[370358583,1751979041788,-460.0,0.00024657,2]
[370358584,1751979041797,-557.62,0.00024657,2]
[370358585,1751979041807,-460.0,0.00024657,2]
[370358586,1751979041816,-460.0,0.00024657,2]
[370358587,1751979041826,-460.0,0.00024657,2]
[370358588,1751979041835,-500.0,0.00024657,2]
[370358589,1751979041845,-500.0,0.00024657,2]
[370358590,1751979041854,-460.0,0.00024657,2]
[370358591,1751979041863,-460.0,0.00024657,2]
[370358592,1751979041873,-460.0,0.00024657,2]
[370358593,1751979041882,-460.0,0.00024657,2]
[370358594,1751979041891,-460.0,0.00024657,2]
[370358595,1751979041901,-460.0,0.00024657,2]
[370358596,1751979041910,-682.5,0.00024657,2]
[370358597,1751979041919,-579.99,0.00024657,2]
[370358598,1751979041929,-460.0,0.00024657,2]
[370358599,1751979041939,-460.0,0.00024657,2]
[370358600,1751979041948,-516.84,0.00024657,2]
[370358601,1751979041958,-460.0,0.00024657,2]
[370358602,1751979041967,-460.0,0.00024657,2]
[370358603,1751979041976,-460.0,0.00024657,2]
[370358604,1751979041985,-460.70028343,0.00024657,2]
[370358605,1751979041994,-493.23756139,0.00024657,2]
[370358606,1751979042003,-588.11,0.00024657,2]
[370358607,1751979042012,-460.0,0.00024657,2]
[370358608,1751979042021,-460.0,0.00024657,2]
[370358609,1751979042032,-460.0,0.00024657,2]
[370358610,1751979042042,-469.52,0.00024657,2]
[370358611,1751979042051,-460.0,0.00024657,2]
[370358612,1751979042060,-545.02,0.00024657,2]
[370358613,1751979042069,-480.84,0.00024657,2]
[370358614,1751979042078,-460.0,0.00024657,2]
[370358615,1751979042087,-460.0,0.00024657,2]
[370358616,1751979042097,-460.0,0.00024657,2]
[370358617,1751979042106,-460.0,0.00024657,2]
[370358618,1751979042115,-543.07,0.00024657,2]
[370358619,1751979042125,-460.0,0.00024657,2]
[370358620,1751979042134,-568.46,0.00024657,2]
[370358621,1751979042144,-604.09,0.00024657,2]
[370358622,1751979042153,-878.05,0.00024657,2]
[370358623,1751979042162,-460.0,0.00024657,2]
[370358624,1751979042172,-565.18,0.00024657,2]
[370358625,1751979042181,-543.74,0.00024657,2]
[370358626,1751979042191,-460.0,0.00024657,2]
[370358627,1751979042201,-460.0,0.00024657,2]
[370358628,1751979042211,-460.0,0.00024657,2]
[370358629,1751979042220,-460.0,0.00024657,2]
[370358630,1751979042230,-460.0,0.00024657,2]
[370358631,1751979042240,-460.0,0.00024657,2]
[370358632,1751979042250,-460.0,0.00024657,2]
[370358633,1751979042260,-525.44,0.00024657,2]
[370358634,1751979042270,-504.93,0.00024657,2]
[370358635,1751979042281,-460.0,0.00024657,2]
[370358636,1751979042291,-460.0,0.00024657,2]
[370358637,1751979042301,-460.0,0.00024657,2]
[370358638,1751979042310,-594.39,0.00024657,2]
[370358639,1751979042319,-460.0,0.00024657,2]
[370358640,1751979042328,-460.0,0.00024657,2]
[370358641,1751979042339,-460.0,0.00024657,2]
[370358642,1751979042349,-460.0,0.00024657,2]
[370358643,1751979042360,-460.0,0.00024657,2]
[370358644,1751979042370,-495.47,0.00024657,2]